fUST/lending_fUST_20241113
["ID","MTS","AMOUNT","RATE_DAILY","PERIOD"]
[342141958,1731503453050,-151.0,0.0002198,7]
[342141959,1731503453059,-1040.77,0.00021982,2]
[342141960,1731503453069,-519.51,0.00021982,2]
[342141961,1731503453079,-500.0,0.00021983,2]
[342141962,1731503453088,-1213.96,0.00021983,2]
[342141963,1731503453097,-500.0,0.00021983,2]
[342141964,1731503453106,-816.71,0.00021983,2]
[342141965,1731503453116,-1978.79,0.00021983,2]
[342141966,1731503453126,-500.0,0.00021983,2]
[342141967,1731503453135,-500.0,0.00021983,2]
[342141968,1731503453144,-1260.12,0.00021983,2]
[342141969,1731503453153,-500.0,0.00021983,2]
[342141970,1731503453162,-531.69,0.00021983,2]
[342141971,1731503453171,-500.0,0.00021983,2]
[342141972,1731503453181,-500.0,0.00021983,2]
[342141973,1731503453190,-4626.69,0.00021983,2]
[342141974,1731503453199,-500.0,0.00021983,2]
[342141975,1731503453208,-856.5,0.00021983,2]
[342141976,1731503453220,-620.28,0.00021983,2]
[342141977,1731503453229,-500.0,0.00021983,2]
[342141978,1731503453239,-500.0,0.00021983,2]
[342141979,1731503453248,-500.0,0.00021983,2]
[342141980,1731503453257,-500.0,0.00021983,2]
[342141981,1731503453266,-261.96512822,0.00021983,2]
[342141982,1731503453275,-500.0,0.00021983,2]
[342141983,1731503453284,-744.6,0.00021983,2]
[342141984,1731503453294,-500.0,0.00021983,2]
[342141985,1731503453303,-500.0,0.00021984,2]
[342141986,1731503453312,-500.0,0.00021984,2]
[342141987,1731503453323,-500.0,0.00021984,2]
[342141988,1731503453332,-500.0,0.00021984,2]
[342141989,1731503453341,-673.3,0.00021984,2]
[342141990,1731503453350,-500.0,0.00021984,2]
[342141991,1731503453359,-500.0,0.00021984,2]
[342141992,1731503453368,-500.0,0.00021984,2]
[342141993,1731503453377,-151.0,0.00021984,7]
[342141994,1731503453387,-500.0,0.00021984,2]
[342141995,1731503453396,-500.0,0.00021984,2]
[342141996,1731503453405,-500.0,0.00021984,2]
[342141997,1731503453414,-500.0,0.00021984,2]
[342141998,1731503453423,-1007.95,0.00021984,2]
[342141999,1731503453432,-500.0,0.00021984,2]
[342142000,1731503453441,-500.0,0.00021984,2]
[342142001,1731503453450,-536.03,0.00021984,2]
[342142002,1731503453459,-1034.52,0.00021984,2]
[342142003,1731503453470,-615.69,0.00021985,2]
[342142004,1731503453484,-290.70626483,0.00021985,2]
[342142005,1731503453494,-500.0,0.00021985,2]
[342142006,1731503453503,-500.0,0.00021985,2]
[342142007,1731503453512,-885.28,0.00021986,2]
[342142008,1731503453523,-3000.0,0.0002199,2]
[342142009,1731503453532,-358.223271,0.0002199,7]
[342142010,1731503453543,-358.223271,0.0002199,7]
[342142011,1731503453554,-153.872684,0.0002199,7]
[342142012,1731503453565,-321.361199,0.0002199,7]
[342142013,1731503453575,-321.361199,0.0002199,7]
[342142014,1731503453584,-289.00161,0.0002199,7]
[342142015,1731503453594,-289.00161,0.0002199,7]
[342142016,1731503453603,-159.0,0.00022,2]
[342142017,1731503453612,-3000.0,0.00022,2]
[342142018,1731503453620,-3000.0,0.0002201,2]
[342142019,1731503453629,-3000.0,0.0002202,2]
[342142020,1731503453638,-3000.0,0.0002203,2]
[342142021,1731503453647,-3000.0,0.0002204,2]
[342142022,1731503453656,-3000.0,0.0002205,2]
[342142023,1731503453666,-3000.0,0.0002206,2]
[342142024,1731503453675,-3000.0,0.0002207,2]
[342142025,1731503453685,-153.0,0.00022076,2]
[342142026,1731503453694,-153.0,0.00022076,2]
[342142027,1731503453703,-153.0,0.00022076,2]
[342142028,1731503453712,-153.0,0.00022076,2]
[342142029,1731503453723,-153.0,0.00022076,2]
[342142030,1731503453733,-153.0,0.00022076,2]
[342142031,1731503453743,-153.0,0.00022076,2]
[342142032,1731503453752,-153.0,0.00022076,2]
[342142033,1731503453762,-153.0,0.00022076,2]
[342142034,1731503453771,-153.0,0.00022076,2]
[342142035,1731503453781,-153.0,0.00022076,2]
[342142036,1731503453791,-153.0,0.00022076,2]
[342142037,1731503453800,-153.0,0.00022076,2]
[342142038,1731503453810,-153.0,0.00022076,2]
[342142039,1731503453819,-153.0,0.00022076,2]
[342142040,1731503453931,-3000.0,0.0002208,2]
[342142041,1731503453942,-3000.0,0.0002209,2]
[342142042,1731503453951,-3000.0,0.000221,2]
[342142043,1731503453961,-3000.0,0.0002211,2]
[342142044,1731503453973,-268.105135,0.0002211,7]
[342142045,1731503453983,-152.538338,0.0002211,7]
[342142046,1731503453992,-268.105135,0.0002211,7]
[342142047,1731503454002,-151.0,0.0002211,7]
[342142048,1731503454011,-198.460034,0.0002211,7]
[342142049,1731503454021,-151.0,0.0002211,7]
[342142050,1731503454030,-3000.0,0.0002212,2]
[342142051,1731503454040,-3000.0,0.0002213,2]
[342142052,1731503454051,-3971.108911,0.0002214,2]
[342142053,1731503454060,-153.0,0.00022161,2]
[342142054,1731503454070,-705.87575,0.00022165,2]
[342142055,1731503454079,-1040.77,0.00022256,2]
[342142056,1731503454088,-519.51,0.00022256,2]
[342142057,1731503454097,-553.48913106,0.00022257,2]
[342142058,1731503454107,-1213.96,0.00022257,2]
[342142059,1731503454116,-500.0,0.00022257,2]
[342142060,1731503454126,-816.71,0.00022257,2]
[342142061,1731503454135,-1978.79,0.00022257,2]
[342142062,1731503454144,-500.0,0.00022257,2]
[342142063,1731503454154,-500.0,0.00022257,2]
[342142064,1731503454175,-1260.12,0.00022257,2]
[342142065,1731503454185,-500.0,0.00022257,2]
[342142066,1731503454196,-531.69,0.00022257,2]
[342142067,1731503454206,-500.0,0.00022257,2]
[342142068,1731503454218,-500.0,0.00022257,2]
[342142069,1731503454228,-4626.69,0.00022257,2]
[342142070,1731503454239,-500.0,0.00022257,2]
[342142071,1731503454249,-856.5,0.00022257,2]
[342142072,1731503454260,-620.28,0.00022257,2]
[342142073,1731503454270,-500.0,0.00022257,2]
[342142074,1731503454280,-407.05221649,0.00022257,2]
[342142075,1731503454291,-580.79321481,0.00022257,2]
[342142076,1731503454300,-400.36031556,0.00022257,2]
[342142077,1731503454310,-500.0,0.00022257,2]
[342142078,1731503454320,-744.6,0.00022257,2]
[342142079,1731503454330,-500.0,0.00022257,2]
[342142080,1731503454341,-500.0,0.00022258,2]
[342142081,1731503454351,-500.0,0.00022258,2]
[342142082,1731503454360,-500.0,0.00022258,2]
[342142083,1731503454370,-500.0,0.00022258,2]
[342142084,1731503454380,-673.3,0.00022258,2]
[342142085,1731503454390,-500.0,0.00022258,2]
[342142086,1731503454400,-518.67645391,0.00022258,2]
[342142087,1731503454410,-500.0,0.00022258,2]
[342142088,1731503454420,-500.0,0.00022258,2]
[342142089,1731503454430,-500.0,0.00022258,2]
[342142090,1731503454439,-500.0,0.00022258,2]
[342142091,1731503454450,-500.0,0.00022258,2]
[342142092,1731503454459,-1007.95,0.00022258,2]
[342142093,1731503454472,-537.34964341,0.00022258,2]
[342142094,1731503454484,-500.0,0.00022258,2]
[342142095,1731503454494,-536.03,0.00022258,2]
[342142096,1731503454503,-1034.52,0.00022258,2]
[342142097,1731503454512,-615.69,0.00022259,2]
[342142098,1731503454522,-500.0,0.00022259,2]
[342142099,1731503454531,-500.0,0.00022259,2]
[342142100,1731503454541,-885.28,0.0002226,2]
[342142101,1731503454551,-615.0,0.000223,2]
[342142102,1731503454561,-1385.41675,0.00022356,2]
[342142103,1731503454571,-502.36812705,0.00022423,8]
[342142104,1731503454580,-1040.77,0.0002253,2]
[342142105,1731503454591,-519.51,0.0002253,2]
[342142106,1731503454600,-1213.96,0.00022531,2]
[342142107,1731503454609,-500.0,0.00022531,2]
[342142108,1731503454619,-816.71,0.00022531,2]
[342142109,1731503454628,-1978.79,0.00022531,2]
[342142110,1731503454637,-454.81384979,0.00022531,2]
[342142111,1731503454647,-500.0,0.00022531,2]
[342142112,1731503454657,-1260.12,0.00022531,2]
[342142113,1731503454666,-500.0,0.00022531,2]
[342142114,1731503454676,-531.69,0.00022531,2]
[342142115,1731503454685,-500.0,0.00022531,2]
[342142116,1731503454694,-500.0,0.00022531,2]
[342142117,1731503454703,-4626.69,0.00022531,2]
[342142118,1731503454712,-500.0,0.00022531,2]
[342142119,1731503454725,-856.5,0.00022531,2]
[342142120,1731503454734,-620.28,0.00022531,2]
[342142121,1731503454743,-500.0,0.00022531,2]
[342142122,1731503454752,-158.43089986,0.00022531,2]
[342142123,1731503454761,-744.6,0.00022531,2]
[342142124,1731503454770,-500.0,0.00022531,2]
[342142125,1731503454779,-500.0,0.00022532,2]
[342142126,1731503454789,-500.0,0.00022532,2]
[342142127,1731503454799,-500.0,0.00022532,2]
[342142128,1731503454808,-151.0,0.00022532,7]
[342142129,1731503454818,-500.0,0.00022532,2]
[342142130,1731503454828,-151.0,0.00022532,7]
[342142131,1731503454838,-673.3,0.00022532,2]
[342142132,1731503454847,-500.0,0.00022532,2]
[342142133,1731503454857,-151.0,0.00022532,7]
[342142134,1731503454867,-151.0,0.00022532,7]
[342142135,1731503454877,-491.61458327,0.00022532,2]
[342142136,1731503454887,-500.0,0.00022532,2]
[342142137,1731503454897,-500.0,0.00022532,2]
[342142138,1731503454907,-500.0,0.00022532,2]
[342142139,1731503454917,-500.0,0.00022532,2]
[342142140,1731503454927,-1007.95,0.00022532,2]
[342142141,1731503454936,-500.0,0.00022532,2]
[342142142,1731503454946,-536.03,0.00022532,2]
[342142143,1731503454955,-1034.52,0.00022532,2]
[342142144,1731503454967,-615.69,0.00022533,2]
[342142145,1731503454977,-500.0,0.00022533,2]
[342142146,1731503454987,-462.98494405,0.00022533,2]
[342142147,1731503454997,-885.28,0.00022534,2]
[342142148,1731503455007,-151.0,0.00022534,7]
[342142149,1731503455017,-151.0,0.00022534,7]
[342142150,1731503455027,-500.0,0.00022559,8]
[342142151,1731503455037,-967.3472524,0.0002261,2]
[342142152,1731503455046,-857.79086963,0.00022676,2]
[342142153,1731503455056,-834.05176965,0.00022705,2]
[342142154,1731503455065,-1040.77,0.00022804,2]
[342142155,1731503455075,-519.51,0.00022804,2]
[342142156,1731503455084,-1213.96,0.00022805,2]
[342142157,1731503455094,-500.0,0.00022805,2]
[342142158,1731503455103,-816.71,0.00022805,2]
[342142159,1731503455112,-1978.79,0.00022805,2]
[342142160,1731503455122,-500.0,0.00022805,2]
[342142161,1731503455131,-1260.12,0.00022805,2]
[342142162,1731503455140,-522.72781791,0.00022805,2]
[342142163,1731503455150,-531.69,0.00022805,2]
[342142164,1731503455160,-532.34050223,0.00022805,2]
[342142165,1731503455169,-241.80269184,0.00022805,2]
[342142166,1731503455178,-4626.69,0.00022805,2]
[342142167,1731503455187,-500.0,0.00022805,2]
[342142168,1731503455197,-856.5,0.00022805,2]
[342142169,1731503455206,-620.28,0.00022805,2]
[342142170,1731503455215,-500.0,0.00022805,2]
[342142171,1731503455225,-744.6,0.00022805,2]
[342142172,1731503455235,-500.0,0.00022805,2]
[342142173,1731503455244,-500.0,0.00022806,2]
[342142174,1731503455253,-500.0,0.00022806,2]
[342142175,1731503455262,-500.0,0.00022806,2]
[342142176,1731503455272,-500.0,0.00022806,2]
[342142177,1731503455281,-151.0,0.00022806,7]
[342142178,1731503455291,-151.0,0.00022806,7]
[342142179,1731503455300,-673.3,0.00022806,2]
[342142180,1731503455309,-500.0,0.00022806,2]
[342142181,1731503455319,-500.0,0.00022806,2]
[342142182,1731503455328,-500.0,0.00022806,2]
[342142183,1731503455337,-318.86177692,0.00022806,2]
[342142184,1731503455346,-604.85138228,0.00022806,2]
[342142185,1731503455355,-1007.95,0.00022806,2]
[342142186,1731503455365,-500.0,0.00022806,2]
[342142187,1731503455374,-536.03,0.00022806,2]
[342142188,1731503455383,-1034.52,0.00022806,2]
[342142189,1731503455393,-615.69,0.00022807,2]
[342142190,1731503455402,-500.0,0.00022807,2]
[342142191,1731503455411,-151.0,0.00022807,7]
[342142192,1731503455420,-885.28,0.00022808,2]
[342142193,1731503455430,-528.0,0.000229,2]
[342142194,1731503455439,-150.112234,0.000229,6]
[342142195,1731503455448,-151.0,0.000229,7]
[342142196,1731503455457,-2000.0,0.0002292,2]
[342142197,1731503455468,-5790.32914254,0.00023,7]
[342142198,1731503455481,-151.0,0.00023,7]
[342142199,1731503455491,-151.0,0.00023,7]
[342142200,1731503455500,-151.0,0.00023,7]
[342142201,1731503455509,-151.0,0.00023,2]
[342142202,1731503455518,-159.0,0.00023014,2]
[342142203,1731503455528,-1040.77,0.00023078,2]
[342142204,1731503455537,-519.51,0.00023078,2]
[342142205,1731503455546,-1213.96,0.00023079,2]
[342142206,1731503455556,-500.0,0.00023079,2]
[342142207,1731503455565,-816.71,0.00023079,2]
[342142208,1731503455574,-1978.79,0.00023079,2]
[342142209,1731503455584,-500.0,0.00023079,2]
[342142210,1731503455593,-1260.12,0.00023079,2]
[342142211,1731503455603,-531.69,0.00023079,2]
[342142212,1731503455612,-4626.69,0.00023079,2]
[342142213,1731503455621,-500.0,0.00023079,2]
[342142214,1731503455630,-856.5,0.00023079,2]
[342142215,1731503455639,-620.28,0.00023079,2]
[342142216,1731503455649,-500.0,0.00023079,2]
[342142217,1731503455658,-744.6,0.00023079,2]
[342142218,1731503455668,-500.0,0.00023079,2]
[342142219,1731503455677,-151.0,0.0002308,7]
[342142220,1731503455686,-500.0,0.0002308,2]
[342142221,1731503455696,-151.0,0.0002308,7]
[342142222,1731503455705,-540.78696158,0.0002308,2]
[342142223,1731503455714,-500.0,0.0002308,2]
[342142224,1731503455725,-244.361918,0.0002308,7]
[342142225,1731503455734,-244.361918,0.0002308,7]
[342142226,1731503455743,-500.0,0.0002308,2]
[342142227,1731503455753,-673.3,0.0002308,2]
[342142228,1731503455763,-500.0,0.0002308,2]
[342142229,1731503455772,-156.77366,0.0002308,7]
[342142230,1731503455781,-156.77366,0.0002308,7]
[342142231,1731503455791,-500.0,0.0002308,2]
[342142232,1731503455800,-500.0,0.0002308,2]
[342142233,1731503455810,-1007.95,0.0002308,2]
[342142234,1731503455819,-500.0,0.0002308,2]
[342142235,1731503455829,-536.03,0.0002308,2]
[342142236,1731503455838,-1034.52,0.0002308,2]
[342142237,1731503455848,-615.69,0.00023081,2]
[342142238,1731503455858,-500.0,0.00023081,2]
[342142239,1731503455867,-885.28,0.00023082,2]
[342142240,1731503455876,-967.3472524,0.0002311,2]
[342142241,1731503455886,-354.2665,0.00023129,2]
[342142242,1731503455895,-151.0,0.00023179,3]
[342142243,1731503455904,-200.0,0.0002319,10]
[342142244,1731503455914,-236.1775,0.00023199,2]
[342142245,1731503455923,-150.112233,0.000232,10]
[342142246,1731503455934,-1040.77,0.00023352,2]
[342142247,1731503455943,-519.51,0.00023352,2]
[342142248,1731503455952,-1213.96,0.00023353,2]
[342142249,1731503455961,-500.0,0.00023353,2]
[342142250,1731503455971,-816.71,0.00023353,2]
[342142251,1731503455980,-1978.79,0.00023353,2]
[342142252,1731503455990,-500.0,0.00023353,2]
[342142253,1731503455999,-151.0,0.00023353,7]
[342142254,1731503456008,-1260.12,0.00023353,2]
[342142255,1731503456017,-283.550785,0.00023353,7]
[342142256,1731503456027,-531.69,0.00023353,2]
[342142257,1731503456036,-151.0,0.00023353,7]
[342142258,1731503456046,-4626.69,0.00023353,2]
[342142259,1731503456055,-482.06895127,0.00023353,2]
[342142260,1731503456064,-856.5,0.00023353,2]
[342142261,1731503456073,-620.28,0.00023353,2]
[342142262,1731503456083,-500.0,0.00023353,2]
[342142263,1731503456092,-744.6,0.00023353,2]
[342142264,1731503456102,-500.0,0.00023353,2]
[342142265,1731503456111,-191.69988998,0.00023354,2]
[342142266,1731503456121,-500.0,0.00023354,2]
[342142267,1731503456130,-502.30864534,0.00023354,2]
[342142268,1731503456139,-673.3,0.00023354,2]
[342142269,1731503456149,-500.0,0.00023354,2]
[342142270,1731503456158,-500.0,0.00023354,2]
[342142271,1731503456167,-500.0,0.00023354,2]
[342142272,1731503456176,-1007.95,0.00023354,2]
[342142273,1731503456186,-500.0,0.00023354,2]
[342142274,1731503456195,-536.03,0.00023354,2]
[342142275,1731503456205,-1034.52,0.00023354,2]
[342142276,1731503456214,-615.69,0.00023355,2]
[342142277,1731503456225,-500.0,0.00023355,2]
[342142278,1731503456234,-885.28,0.00023356,2]
[342142279,1731503456244,-520.6285,0.00023395,2]
[342142280,1731503456253,-183.027,0.00023395,2]
[342142281,1731503456262,-151.0,0.00023399,3]
[342142282,1731503456271,-967.3472524,0.0002361,2]
[342142283,1731503456280,-151.0,0.00023619,3]
[342142284,1731503456289,-1040.77,0.00023626,2]
[342142285,1731503456299,-519.51,0.00023626,2]
[342142286,1731503456308,-151.0,0.00023627,7]
[342142287,1731503456317,-1213.96,0.00023627,2]
[342142288,1731503456326,-500.0,0.00023627,2]
[342142289,1731503456335,-816.71,0.00023627,2]
[342142290,1731503456345,-1978.79,0.00023627,2]
[342142291,1731503456354,-500.0,0.00023627,2]
[342142292,1731503456363,-1260.12,0.00023627,2]
[342142293,1731503456372,-531.69,0.00023627,2]
[342142294,1731503456381,-4626.69,0.00023627,2]
[342142295,1731503456390,-856.5,0.00023627,2]
[342142296,1731503456399,-620.28,0.00023627,2]
[342142297,1731503456408,-500.0,0.00023627,2]
[342142298,1731503456417,-744.6,0.00023627,2]
[342142299,1731503456427,-500.0,0.00023627,2]
[342142300,1731503456436,-500.0,0.00023628,2]
[342142301,1731503456445,-673.3,0.00023628,2]
[342142302,1731503456455,-325.5089567,0.00023628,2]
[342142303,1731503456464,-500.0,0.00023628,2]
[342142304,1731503456483,-383.23395301,0.00023628,2]
[342142305,1731503456492,-1007.95,0.00023628,2]
[342142306,1731503456501,-500.0,0.00023628,2]
[342142307,1731503456511,-536.03,0.00023628,2]
[342142308,1731503456520,-1034.52,0.00023628,2]
[342142309,1731503456530,-615.69,0.00023629,2]
[342142310,1731503456539,-500.0,0.00023629,2]
[342142311,1731503456548,-885.28,0.0002363,2]
[342142312,1731503456670,-160.0,0.00023708,3]
[342142313,1731503456680,-168.836,0.0002372,2]
[342142314,1731503456690,-857.79086963,0.00023756,2]
[342142315,1731503456699,-358.223271,0.000238,7]
[342142316,1731503456708,-358.223271,0.000238,7]
[342142317,1731503456718,-321.361199,0.000238,7]
[342142318,1731503456727,-321.361199,0.000238,7]
[342142319,1731503456738,-289.00161,0.000238,7]
[342142320,1731503456747,-289.00161,0.000238,7]
[342142321,1731503456757,-1078.8293,0.000238,2]
[342142322,1731503456767,-151.513288,0.00023826,3]
[342142323,1731503456776,-2500.0,0.00023826,3]
[342142324,1731503456787,-2500.0,0.00023835,3]
[342142325,1731503456796,-1088.01604946,0.00023838,2]
[342142326,1731503456806,-151.0,0.00023839,3]
[342142327,1731503456815,-151.0,0.00023839,3]
[342142328,1731503456825,-1040.77,0.000239,2]
[342142329,1731503456835,-519.51,0.000239,2]
[342142330,1731503456845,-1213.96,0.00023901,2]
[342142331,1731503456854,-500.0,0.00023901,2]
[342142332,1731503456864,-816.71,0.00023901,2]
[342142333,1731503456873,-1978.79,0.00023901,2]
[342142334,1731503456882,-500.0,0.00023901,2]
[342142335,1731503456891,-1260.12,0.00023901,2]
[342142336,1731503456901,-531.69,0.00023901,2]
[342142337,1731503456910,-4626.69,0.00023901,2]
[342142338,1731503456920,-856.5,0.00023901,2]
[342142339,1731503456929,-620.28,0.00023901,2]
[342142340,1731503456938,-500.0,0.00023901,2]
[342142341,1731503456948,-744.6,0.00023901,2]
[342142342,1731503456957,-500.0,0.00023901,2]
[342142343,1731503456967,-500.0,0.00023902,2]
[342142344,1731503456977,-673.3,0.00023902,2]
[342142345,1731503456986,-500.0,0.00023902,2]
[342142346,1731503456995,-1007.95,0.00023902,2]
[342142347,1731503457003,-500.0,0.00023902,2]
[342142348,1731503457012,-536.03,0.00023902,2]
[342142349,1731503457022,-1034.52,0.00023902,2]
[342142350,1731503457031,-615.69,0.00023903,2]
[342142351,1731503457041,-500.0,0.00023903,2]
[342142352,1731503457051,-885.28,0.00023904,2]
[342142353,1731503457060,-500.0,0.00023907,2]
[342142354,1731503457069,-259.12470435,0.00023907,2]
[342142355,1731503457079,-300.0,0.00023907,2]
[342142356,1731503457088,-500.0,0.00023907,2]
[342142357,1731503457097,-297.65938785,0.00023907,2]
[342142358,1731503457107,-500.0,0.00023907,2]
[342142359,1731503457115,-500.0,0.00023907,2]
[342142360,1731503457125,-500.0,0.00023907,2]
[342142361,1731503457134,-196.46978586,0.00023907,2]
[342142362,1731503457147,-768.698674,0.00023938,2]
[342142363,1731503457157,-951.449843,0.00023938,2]
[342142364,1731503457166,-950.874793,0.00023938,2]
[342142365,1731503457174,-865.784452,0.00023938,2]
[342142366,1731503457183,-301.927289,0.00023938,2]
[342142367,1731503457193,-50000.0,0.00024,15]
[342142368,1731503457203,-3979.08893444,0.00024,2]
[342142369,1731503457217,-268.105135,0.00024,7]
[342142370,1731503457228,-268.105135,0.00024,7]
[342142371,1731503457237,-151.0,0.00024,7]
[342142372,1731503457246,-151.0,0.00024,7]
[342142373,1731503457255,-967.3472524,0.0002411,2]
[342142374,1731503457264,-182.035834,0.00024133,2]
[342142375,1731503457274,-159.0,0.00024164,2]
[342142376,1731503457283,-1040.77,0.00024174,2]
[342142377,1731503457293,-519.51,0.00024174,2]
[342142378,1731503457302,-1213.96,0.00024175,2]
[342142379,1731503457310,-500.0,0.00024175,2]
[342142380,1731503457320,-816.71,0.00024175,2]
[342142381,1731503457329,-1978.79,0.00024175,2]
[342142382,1731503457339,-537.84972703,0.00024175,2]
[342142383,1731503457348,-1260.12,0.00024175,2]
[342142384,1731503457357,-531.69,0.00024175,2]
[342142385,1731503457371,-4626.69,0.00024175,2]
[342142386,1731503457380,-856.5,0.00024175,2]
[342142387,1731503457390,-620.28,0.00024175,2]
[342142388,1731503457399,-500.0,0.00024175,2]
[342142389,1731503457409,-744.6,0.00024175,2]
[342142390,1731503457419,-402.05923663,0.00024175,2]
[342142391,1731503457430,-618.08884562,0.00024176,2]
[342142392,1731503457439,-673.3,0.00024176,2]
[342142393,1731503457448,-190.25072136,0.00024176,2]
[342142394,1731503457458,-1007.95,0.00024176,2]
[342142395,1731503457469,-500.0,0.00024176,2]
[342142396,1731503457483,-536.03,0.00024176,2]
[342142397,1731503457492,-1034.52,0.00024176,2]
[342142398,1731503457503,-615.69,0.00024177,2]
[342142399,1731503457512,-301.71980061,0.00024177,2]
[342142400,1731503457522,-885.28,0.00024178,2]
[342142401,1731503457531,-500.0,0.00024181,2]
[342142402,1731503457541,-291.29353766,0.00024181,2]
[342142403,1731503457551,-300.0,0.00024181,2]
[342142404,1731503457560,-500.0,0.00024181,2]
[342142405,1731503457570,-500.0,0.00024181,2]
[342142406,1731503457580,-500.0,0.00024181,2]
[342142407,1731503457589,-500.0,0.00024181,2]
[342142408,1731503457599,-151.0,0.00024181,7]
[342142409,1731503457608,-151.0,0.00024181,7]
[342142410,1731503457618,-176.469,0.000242,2]
[342142411,1731503457627,-834.05176965,0.00024212,2]
[342142412,1731503457636,-768.698674,0.0002423,2]
[342142413,1731503457645,-951.449843,0.0002423,2]
[342142414,1731503457655,-950.874793,0.0002423,2]
[342142415,1731503457663,-865.784452,0.0002423,2]
[342142416,1731503457672,-301.927289,0.0002423,2]
[342142417,1731503457682,-1040.77,0.00024448,2]
[342142418,1731503457691,-519.51,0.00024448,2]
[342142419,1731503457700,-1213.96,0.00024449,2]
[342142420,1731503457710,-500.0,0.00024449,2]
[342142421,1731503457725,-816.71,0.00024449,2]
[342142422,1731503457734,-1978.79,0.00024449,2]
[342142423,1731503457743,-1260.12,0.00024449,2]
[342142424,1731503457754,-531.69,0.00024449,2]
[342142425,1731503457764,-4626.69,0.00024449,2]
[342142426,1731503457774,-856.5,0.00024449,2]
[342142427,1731503457783,-620.28,0.00024449,2]
[342142428,1731503457793,-151.0,0.00024449,7]
[342142429,1731503457802,-42.25716795,0.00024449,2]
[342142430,1731503457940,-171.6097509,0.00019966,2]
[342142431,1731503457950,-457.74283205,0.00024449,2]
[342142432,1731503457960,-151.0,0.00024449,7]
[342142433,1731503457976,-744.6,0.00024449,2]
[342142434,1731503457986,-151.0,0.0002445,7]
[342142435,1731503457995,-271.89291533,0.0002445,2]
[342142436,1731503458137,-500.0,0.00019791,2]
[342142437,1731503458147,-500.0,0.00020065,2]
[342142438,1731503458157,-401.40708467,0.0002445,2]
[342142439,1731503458166,-151.0,0.0002445,7]
[342142440,1731503458175,-1007.95,0.0002445,2]
[342142441,1731503458185,-500.0,0.0002445,2]
[342142442,1731503458194,-536.03,0.0002445,2]
[342142443,1731503458203,-1034.52,0.0002445,2]
[342142444,1731503458213,-615.69,0.00024451,2]
[342142445,1731503458227,-885.28,0.00024452,2]
[342142446,1731503458236,-361.57532007,0.00024455,2]
[342142447,1731503458245,-500.0,0.00024455,2]
[342142448,1731503458256,-500.0,0.00024455,2]
[342142449,1731503458265,-500.0,0.00024455,2]
[342142450,1731503458274,-500.0,0.00024455,2]
[342142451,1731503458283,-168.53604938,0.00024455,2]
[342142452,1731503458293,-251.97667487,0.00024455,2]
[342142453,1731503458303,-157.7433871,0.00024455,2]
[342142454,1731503458312,-768.698674,0.00024522,2]
[342142455,1731503458322,-951.449843,0.00024522,2]
[342142456,1731503458331,-950.874793,0.00024522,2]
[342142457,1731503458341,-865.784452,0.00024522,2]